bitfinex-derivatives/quotes_SOLF0:USTF0_20260220
["timestamp","ask_amount","ask_price","bid_price","bid_amount"]
[1771580728358,5.633e-05,84.26,84.24,10.6885]
[1771580728758,3.04455633,84.27,84.24,10.6885]
[1771580729754,3.04455633,84.27,84.243,5.8828592]
[1771580730058,3.04455633,84.28,84.243,5.8828592]
[1771580731753,3.04455633,84.28,84.25,10.6873]
[1771580733158,3.04455633,84.28,84.243,5.8828592]
[1771580733159,6.04393896,84.269,84.237,10.6889]
[1771580733358,3.04455633,84.26,84.237,10.6889]
[1771580734855,6.04393896,84.269,84.237,10.6889]
[1771580736458,3.04455633,84.26,84.231,5.8828592]
[1771580737263,3.04455633,84.26,84.232,10.6895]
[1771580738065,3.04455633,84.27,84.236,6.06996336]
[1771580738962,3.04455633,84.27,84.237,6.06996336]
[1771580740156,3.04455633,84.26,84.223,6.06996336]
[1771580741663,3.04455633,84.26,84.224,10.6905]
[1771580741866,3.04455633,84.26,84.224,16.76046336]
[1771580742065,3.04455633,84.25,84.224,16.76046336]
[1771580742766,3.04455633,84.24,84.217,6.06996336]
[1771580743361,3.04455633,84.25,84.218,10.6912]
[1771580744568,3.04455633,84.25,84.225,10.6904]
[1771580745170,5.633e-05,84.25,84.228,10.69]
[1771580745473,3.04455633,84.27,84.229,6.06996336]
[1771580746070,3.04455633,84.27,84.246,10.6877]
[1771580746371,3.04455633,84.28,84.246,10.6877]
[1771580746964,5.76422935,84.279,84.242,6.06996336]
[1771580747168,3.04455633,84.27,84.242,6.06996336]
[1771580750073,3.04455633,84.27,84.23,6.06996336]
[1771580750274,3.04455633,84.26,84.23,6.06996336]
[1771580751972,5.76422935,84.268,84.23,6.06996336]
[1771580753073,3.04349332,84.26,84.219,10.6911]
[1771580753278,3.04349332,84.26,84.219,16.76106336]
[1771580753774,3.04349332,84.26,84.22,6.06996336]
[1771580755677,8.80772267,84.26,84.22,6.06996336]
[1771580759383,8.80772267,84.26,84.221,16.76086336]
[1771580759881,8.80772267,84.26,84.222,6.06996336]
[1771580761278,5.76422935,84.259,84.222,6.06996336]
[1771580761474,5.76422935,84.259,84.224,10.6905]
[1771580762183,3.04349332,84.25,84.214,10.6918]
[1771580763384,3.04349332,84.25,84.214,16.76176336]
[1771580764283,3.04349332,84.25,84.218,10.6912]
[1771580765683,9.332e-05,84.25,84.228,10.69]
[1771580765883,3.04349332,84.27,84.229,5.52359937]
[1771580766093,3.04349332,84.28,84.231,5.52359937]
[1771580766289,8.56971889,84.279,84.231,5.52359937]
[1771580766491,8.56971889,84.278,84.231,5.52359937]
[1771580766682,8.56971889,84.277,84.231,5.52359937]
[1771580766882,8.56971889,84.276,84.24,5.36138256]
[1771580767083,3.04349332,84.28,84.24,5.36138256]
[1771580767283,8.5695186,84.279,84.24,5.36138256]
[1771580767487,8.5695186,84.278,84.24,5.36138256]
[1771580767688,8.5695186,84.277,84.24,5.36138256]
[1771580767988,3.04349332,84.28,84.24,5.36138256]
[1771580768188,8.56942221,84.279,84.24,5.36138256]
[1771580768387,8.56942221,84.278,84.24,5.36138256]
[1771580768686,8.56942221,84.277,84.25,10.6872]
[1771580768888,3.04349332,84.28,84.25,10.6872]
[1771580769085,8.57085815,84.279,84.25,10.6872]
[1771580769278,8.57085815,84.278,84.25,10.6872]
[1771580769481,8.57085815,84.277,84.25,10.6872]
[1771580769687,8.38963055,84.27,84.25,10.6872]
[1771580770791,11.04363206,84.289,84.25,10.6872]
[1771580770979,3.04349332,84.27,84.242,10.6882]
[1771580771180,8.57351796,84.269,84.242,10.6882]
[1771580771391,3.04349332,84.27,84.242,10.6882]
[1771580771591,8.57351796,84.269,84.242,10.6882]
[1771580771791,3.04349332,84.27,84.242,10.6882]
[1771580771993,3.04349332,84.26,84.233,10.6893]
[1771580773892,3.04349332,84.26,84.225,5.36138256]
[1771580774890,3.04349332,84.25,84.213,5.36138256]
[1771580775991,3.04349332,84.24,84.213,5.36138256]
[1771580776189,3.04349332,84.24,84.174,21.3937]
[1771580776190,5.34613723,84.229,84.191,5.36138256]
[1771580776385,3.04349332,84.22,84.191,5.36138256]
[1771580776591,3.04349332,84.21,84.171,5.36138256]
[1771580777393,3.04349332,84.21,84.176,10.6966]
[1771580778389,3.04349332,84.21,84.184,10.6956]
[1771580778893,5.34613723,84.219,84.184,10.6956]
[1771580781297,3.04349332,84.21,84.184,10.6956]
[1771580782593,3.04349332,84.2,84.171,16.05858256]
[1771580784196,9.332e-05,84.2,84.178,10.6963]
[1771580785005,8.53770243,84.243,84.185,16.50521338]
[1771580785308,3.04349332,84.21,84.185,16.50521338]
[1771580786002,9.332e-05,84.21,84.192,10.6945]
[1771580786204,3.04349332,84.23,84.193,5.80996997]
[1771580786404,3.04349332,84.25,84.201,5.80996997]
[1771580786607,3.04349332,84.26,84.211,5.80996997]
[1771580787604,3.04349332,84.26,84.219,10.6912]
[1771580787812,3.04349332,84.24,84.219,10.6912]
[1771580788612,9.332e-05,84.24,84.219,10.6912]
[1771580789408,3.04349332,84.25,84.219,10.6912]
[1771580798419,3.04349332,84.25,84.211,5.80996997]
[1771580812541,3.04349332,84.26,84.213,5.83913058]
[1771580813733,3.04349332,84.26,84.217,5.81039444]
[1771580814036,3.04366116,84.27,84.221,5.81039444]
[1771580814738,3.04366116,84.27,84.223,5.81039444]
[1771580819241,3.04366116,84.27,84.233,5.81039444]
[1771580819540,3.04366116,84.28,84.233,5.81039444]
[1771580820836,3.04366116,84.28,84.237,5.81039444]
[1771580821644,3.04366116,84.28,84.239,5.81039444]
[1771580822646,3.04366116,84.28,84.247,10.6876]
[1771580822947,3.04366116,84.27,84.221,5.81039444]
[1771580823642,3.04366116,84.27,84.24,5.81039444]
[1771580824738,3.04366116,84.27,84.22,3.04366116]
[1771580824739,3.04366116,84.27,84.242,16.43347647]
[1771580824943,3.04366116,84.27,84.243,5.74537647]
[1771580826140,6.116e-05,84.26,84.245,10.6879]
[1771580831351,6.116e-05,84.26,84.233,5.74549027]
[1771580844663,3.04366116,84.27,84.233,5.74549027]
[1771580846562,3.04366116,84.28,84.233,5.74549027]
[1771580846757,3.04366116,84.29,84.241,5.84466021]
[1771580847065,10.6825,84.288,84.242,5.84217104]
[1771580847258,8.55603735,84.287,84.242,5.84217104]
[1771580847459,10.6825,84.288,84.242,5.84217104]
[1771580847655,8.55605911,84.287,84.242,5.84217104]
[1771580847863,10.6825,84.288,84.242,5.84217104]
[1771580848060,10.6827,84.286,84.245,5.84224491]
[1771580848670,10.6814,84.297,84.252,5.84224491]
[1771580848968,8.55488548,84.296,84.252,5.84224491]
[1771580849267,3.04366116,84.3,84.252,5.84224491]
[1771580849466,8.55425241,84.299,84.252,5.84224491]
[1771580849666,3.04366116,84.29,84.252,5.84224491]
[1771580850368,3.04366116,84.29,84.254,5.8453935]
[1771580852370,3.04366116,84.29,84.256,5.79385087]
[1771580853365,3.04366116,84.29,84.259,10.6861]
[1771580854569,3.04366116,84.29,84.259,16.47281387]
[1771580855869,3.04366116,84.29,84.261,10.6858]
[1771580856570,3.04366116,84.29,84.261,16.48190717]
[1771580857272,8.56411318,84.289,84.261,16.48190717]
[1771580857567,3.04366116,84.29,84.261,16.48190717]
[1771580857770,8.56356568,84.289,84.261,16.48190717]
[1771580857971,3.04366116,84.29,84.261,16.48190717]
[1771580858172,8.56356568,84.289,84.261,16.48190717]
[1771580858375,3.04366116,84.29,84.268,10.6849]
[1771580858673,8.56452907,84.289,84.268,10.6849]
[1771580858877,3.04366116,84.29,84.268,10.6849]
[1771580859173,8.56452907,84.289,84.268,10.6849]
[1771580859373,3.04366116,84.29,84.261,5.79610717]
[1771580859571,8.56433645,84.289,84.261,5.79610717]
[1771580859770,3.04366116,84.29,84.261,5.79610717]
[1771580859971,8.56433645,84.289,84.261,5.79610717]
[1771580860175,3.04366116,84.29,84.261,5.79610717]
[1771580860374,8.56387872,84.289,84.261,5.79610717]
[1771580860574,3.04366116,84.29,84.261,5.79610717]
[1771580860875,8.55738522,84.289,84.261,5.79610717]
[1771580861066,3.04366116,84.29,84.261,5.79610717]
[1771580861270,8.55729818,84.289,84.261,5.79610717]
[1771580861472,3.04366116,84.29,84.261,5.79610717]
[1771580861776,8.55700811,84.289,84.261,5.79610717]
[1771580861977,3.04366116,84.29,84.261,5.79610717]
[1771580862277,8.55700811,84.289,84.261,5.79610717]
[1771580862577,3.04366116,84.29,84.261,5.79610717]
[1771580862777,8.55670769,84.289,84.261,5.79610717]
[1771580862974,3.04366116,84.29,84.261,5.79610717]
[1771580863174,8.55670769,84.289,84.261,5.79610717]
[1771580863379,3.04366116,84.29,84.261,5.79610717]
[1771580864879,3.04366116,84.28,84.243,5.77759169]
[1771580865782,3.04366116,84.29,84.243,5.77759169]
[1771580865985,8.55626923,84.289,84.247,5.77541348]
[1771580866282,3.04366116,84.29,84.247,5.77541348]
[1771580869384,3.04366116,84.29,84.249,5.80467346]
[1771580869685,3.04366116,84.3,84.249,5.80467346]
[1771580869982,8.55489831,84.299,84.249,5.80467346]
[1771580870172,8.55489831,84.298,84.249,5.80467346]
[1771580870377,8.55489831,84.297,84.251,5.80473374]
[1771580870580,8.55489831,84.296,84.251,5.80473374]
[1771580870782,3.04366116,84.29,84.26,5.80473374]
[1771580872187,3.04366116,84.28,84.231,5.80746709]
[1771580872377,3.04366116,84.29,84.241,5.80743651]
[1771580873686,3.04366116,84.29,84.262,10.6856]
[1771580874487,3.04366116,84.29,84.263,5.80150174]
[1771580875384,3.04366116,84.29,84.264,10.6854]
[1771580875984,11.05989204,84.319,84.274,10.6841]
[1771580876291,3.04157918,84.3,84.265,5.83003126]
[1771580876493,3.04157918,84.29,84.265,5.83003126]
[1771580877490,3.04157918,84.29,84.266,10.6851]
[1771580878994,7.918e-05,84.29,84.266,10.6851]
[1771580879190,3.04157918,84.3,84.272,10.6844]
[1771580879391,8.55349069,84.299,84.272,10.6844]
[1771580879592,8.55349069,84.298,84.272,10.6844]
[1771580879892,8.55349069,84.297,84.272,10.6844]
[1771580880087,8.55349069,84.296,84.272,10.6844]
[1771580880297,8.55349069,84.295,84.272,10.6844]
[1771580880488,8.55349069,84.294,84.272,10.6844]
[1771580880693,3.04157918,84.3,84.272,10.6844]
[1771580880992,8.55409135,84.299,84.272,10.6844]
[1771580881192,8.55409135,84.298,84.272,10.6844]
[1771580881495,8.55409135,84.297,84.265,5.83003126]
[1771580881689,3.04157918,84.29,84.265,5.83003126]
[1771580888399,3.04157918,84.28,84.254,5.76652616]
[1771580889298,8.56922832,84.279,84.244,5.76518389]
[1771580889601,3.04157918,84.28,84.244,5.76518389]
[1771580889901,8.56916072,84.279,84.244,5.76518389]
[1771580890102,3.04157918,84.27,84.244,5.76518389]
[1771580890302,8.57039427,84.269,84.244,5.76518389]
[1771580890599,3.04157918,84.25,84.211,5.76523237]
[1771580891904,3.04157918,84.25,84.185,21.83723822]
[1771580891905,3.04157918,84.24,84.212,5.73619748]
[1771580892701,3.04157918,84.23,84.18,3.04157918]
[1771580893304,3.04157918,84.23,84.189,10.695]
[1771580893500,8.63455104,84.24,84.19,3.04157918]
[1771580893700,5.52908755,84.239,84.19,3.04157918]
[1771580894805,5.52908755,84.239,84.193,5.30559272]
[1771580896908,5.52908755,84.239,84.199,5.30559272]
[1771580897708,5.52908755,84.239,84.201,5.30559272]
[1771580899803,5.52908755,84.239,84.203,5.30559272]
[1771580900610,3.04157918,84.23,84.204,10.693]
[1771580901410,3.04157918,84.23,84.203,5.30559272]
[1771580902511,3.04157918,84.23,84.186,5.30559272]
[1771580903011,3.04157918,84.23,84.188,5.30559272]
[1771580903511,5.52908755,84.239,84.191,5.30559272]
[1771580908015,3.04157918,84.24,84.193,5.30559272]
[1771580908905,5.54218643,84.249,84.201,5.30559272]
[1771580909111,3.04157918,84.26,84.211,5.30559272]
[1771580909314,8.63455104,84.26,84.211,5.30559272]
[1771580909512,5.59297186,84.259,84.211,5.30559272]
[1771580910315,3.04157918,84.25,84.211,5.30559272]
[1771580910516,8.63455104,84.25,84.211,5.30559272]
[1771580910712,5.59297186,84.249,84.211,5.30559272]
[1771580911418,10.6875,84.248,84.211,5.30559272]
[1771580911916,16.28047186,84.248,84.211,5.30559272]
[1771580913316,10.6881,84.244,84.211,5.30559272]
[1771580913621,3.04157918,84.24,84.211,5.30559272]
[1771580913918,10.6887,84.239,84.211,5.30559272]
[1771580914118,16.28167186,84.239,84.192,5.30559272]
[1771580915821,16.28167186,84.239,84.194,5.30559272]
[1771580916318,5.59297186,84.239,84.199,5.30559272]
[1771580917916,5.59297186,84.239,84.202,5.77212689]
[1771580919327,5.59297186,84.239,84.204,5.77212689]
[1771580920820,5.59297186,84.239,84.207,5.77212689]
[1771580921028,5.33886912,84.259,84.207,5.77212689]
[1771580921221,5.33886912,84.259,84.211,5.77212689]
[1771580922130,5.33886912,84.259,84.219,5.77212689]
[1771580922930,5.33886912,84.259,84.229,10.6899]
[1771580923127,5.33886912,84.259,84.229,16.46202689]
[1771580924231,5.33886912,84.259,84.218,5.77212689]
[1771580924433,5.33886912,84.249,84.218,5.77212689]
[1771580925728,5.33886912,84.249,84.219,10.6912]
[1771580933542,3.04157918,84.25,84.22,5.77212689]
[1771580933743,3.04157918,84.26,84.226,5.77212689]
[1771580936042,3.04403292,84.26,84.226,5.77212689]
[1771580936537,3.04403292,84.25,84.226,5.77212689]
[1771580936744,5.33886912,84.249,84.215,5.77212689]
[1771580940844,3.04403292,84.26,84.219,5.77212689]
[1771580941145,8.63449422,84.259,84.219,5.77212689]
[1771580941444,8.63449422,84.258,84.219,5.77212689]
[1771580941642,8.63449422,84.257,84.219,5.77212689]
[1771580941845,8.63449422,84.256,84.219,5.77212689]
[1771580942041,8.63449422,84.255,84.219,5.77212689]
[1771580942247,8.63449422,84.254,84.219,5.77212689]
[1771580942449,8.63449422,84.253,84.219,5.77212689]
[1771580942639,8.63449422,84.252,84.219,5.77212689]
[1771580942839,8.63449422,84.251,84.219,5.77212689]
[1771580943044,8.63449422,84.25,84.219,5.77212689]
[1771580943240,8.38290204,84.26,84.219,5.77212689]
[1771580943544,5.33886912,84.258,84.219,5.77212689]
[1771580943844,8.6346073,84.257,84.221,5.77212689]
[1771580944038,8.6346073,84.256,84.221,5.77212689]
[1771580944240,8.6346073,84.255,84.221,5.77212689]
[1771580944440,5.33886912,84.258,84.221,5.77212689]
[1771580944850,3.04403292,84.26,84.221,5.77212689]
[1771580945050,5.68332044,84.268,84.223,5.76506007]
[1771580945250,5.68332044,84.266,84.223,5.76506007]
[1771580945450,14.31692506,84.265,84.223,5.76506007]
[1771580945655,3.04403292,84.26,84.223,5.76506007]
[1771580945949,8.63360462,84.259,84.223,5.76506007]
[1771580946152,8.63360462,84.258,84.223,5.76506007]
[1771580946353,3.04403292,84.26,84.223,5.76506007]
[1771580946554,8.63301468,84.259,84.223,5.76506007]
[1771580946743,5.68332044,84.257,84.223,5.76506007]
[1771580947348,3.04403292,84.25,84.223,5.76506007]
[1771580948149,5.3596964,84.249,84.213,5.33639819]
[1771580949658,5.3596964,84.249,84.214,16.02819819]
[1771580949860,5.3596964,84.249,84.215,5.33639819]
[1771580950260,5.3596964,84.258,84.215,5.33639819]
[1771580950458,13.993982,84.257,84.215,5.33639819]
[1771580950657,13.993982,84.256,84.215,5.33639819]
[1771580950963,8.6342856,84.255,84.215,5.33639819]
[1771580951160,8.6342856,84.254,84.215,5.33639819]
[1771580951356,8.6342856,84.253,84.215,5.33639819]
[1771580951558,3.04403292,84.25,84.215,5.33639819]
[1771580951859,3.04403292,84.25,84.218,10.6913]
[1771580952762,3.04403292,84.25,84.218,16.02769819]
[1771580955268,8.40372932,84.25,84.218,16.02769819]
[1771580955758,8.40372932,84.25,84.224,10.6905]
[1771580960362,8.60793834,84.249,84.224,10.6905]
[1771580960562,8.40372932,84.25,84.224,10.6905]
[1771580960858,8.60793834,84.249,84.224,10.6905]
[1771580961062,8.40372932,84.25,84.224,10.6905]
[1771580961363,8.60902581,84.249,84.224,10.6905]
[1771580961564,3.04403292,84.27,84.227,5.33639819]
[1771580961860,8.60868327,84.269,84.227,5.33639819]
[1771580962064,8.60868327,84.268,84.227,5.33639819]
[1771580962264,8.60868327,84.267,84.227,5.33639819]
[1771580962465,3.04403292,84.27,84.227,5.33639819]
[1771580962773,3.04403292,84.27,84.22,3.04403292]
[1771580962774,8.60690181,84.269,84.237,5.33639819]
[1771580962973,8.60690181,84.268,84.237,5.33639819]
[1771580963267,3.04403292,84.27,84.237,5.33639819]
[1771580963466,8.60580374,84.269,84.237,5.33639819]
[1771580963666,8.60580374,84.268,84.237,5.33639819]
[1771580963866,5.3596964,84.271,84.237,5.33639819]
[1771580968173,5.3596964,84.259,84.227,5.33639819]
[1771580969573,5.3596964,84.249,84.216,5.33639819]
[1771580970772,5.3596964,84.249,84.217,10.6914]
[1771580973876,3.04403292,84.24,84.217,10.6914]
[1771580975280,5.3596964,84.249,84.217,10.6914]
[1771580975478,5.3596964,84.247,84.217,10.6914]
[1771580975770,3.04403292,84.24,84.216,5.33639819]
[1771580975973,8.6023236,84.239,84.216,5.33639819]
[1771580976176,8.6023236,84.238,84.216,5.33639819]
[1771580976377,3.04403292,84.24,84.216,5.33639819]
[1771580976567,8.6013364,84.239,84.216,5.33639819]
[1771580976771,8.6013364,84.238,84.216,5.33639819]
[1771580976971,3.04403292,84.24,84.216,5.33639819]
[1771580977267,5.45973067,84.238,84.208,10.6925]
[1771580982677,5.45973067,84.238,84.209,5.40670921]
[1771580983982,3.04403292,84.24,84.209,5.40670921]
[1771580985384,5.45973067,84.239,84.209,5.40670921]
[1771580986979,3.04403292,84.24,84.209,5.40670921]
[1771580991483,3.04403292,84.22,84.194,281.97993178]
[1771580991689,3.04403292,84.21,84.19,5.40670921]
[1771580991988,3.04403292,84.2,84.161,5.40670921]
[1771580992880,3.04403292,84.2,84.169,16.10420921]
[1771580993685,3.04403292,84.2,84.173,10.6969]
[1771580994488,3.04403292,84.2,84.17,5.40670921]
[1771580994789,5.45973067,84.209,84.17,5.40670921]
[1771580996785,5.45973067,84.209,84.172,5.40670921]
[1771581001189,3.04763201,84.21,84.174,10.6969]
[1771581001390,3.04763201,84.21,84.17,3.04763201]
[1771581001391,3.04763201,84.22,84.175,5.40670921]
[1771581001986,3.04763201,84.22,84.18,3.04763201]
[1771581002294,3.04763201,84.23,84.184,5.40670921]
[1771581003692,3.04763201,84.23,84.187,5.40670921]
[1771581007594,3.04763201,84.23,84.19,5.36774472]
[1771581007794,5.45973067,84.237,84.191,5.36774472]
[1771581008301,3.04763201,84.23,84.191,5.36774472]
[1771581008695,3.04763201,84.23,84.195,5.36774472]
[1771581009699,3.04763201,84.23,84.198,5.36774472]
[1771581017397,5.62444475,84.219,84.191,5.36774472]
[1771581019003,3.04763201,84.22,84.191,5.36774472]
[1771581019203,8.67207676,84.23,84.191,5.36774472]
[1771581019505,8.60955066,84.229,84.192,5.36774472]
[1771581019703,8.60955066,84.228,84.192,5.36774472]
[1771581019904,8.60955066,84.227,84.192,5.36774472]
[1771581020204,8.60955066,84.226,84.192,5.36774472]
[1771581020404,8.60955066,84.225,84.192,5.36774472]
[1771581020607,8.67207676,84.23,84.192,5.36774472]
[1771581020810,8.6109856,84.229,84.192,5.36774472]
[1771581021005,8.6109856,84.228,84.192,5.36774472]
[1771581021310,8.6109856,84.227,84.192,5.36774472]
[1771581021510,8.6109856,84.226,84.192,5.36774472]
[1771581021711,8.6109856,84.225,84.192,5.36774472]
[1771581022011,8.67207676,84.23,84.192,5.36774472]
[1771581022213,3.04763201,84.22,84.192,5.36774472]
[1771581023110,5.62444475,84.219,84.183,10.6956]
[1771581023313,3.04763201,84.21,84.183,10.6956]
[1771581023713,3.04763201,84.21,84.183,16.06334472]
[1771581024520,5.62444475,84.219,84.184,5.36774472]
[1771581025412,3.04763201,84.21,84.184,5.36774472]
[1771581027812,3.04763201,84.22,84.187,5.36774472]
[1771581028010,3.04763201,84.23,84.187,5.36774472]
[1771581028213,8.6094606,84.229,84.187,5.36774472]
[1771581028510,8.6094606,84.228,84.187,5.36774472]
[1771581028714,8.6094606,84.227,84.187,5.36774472]
[1771581028914,8.6094606,84.226,84.187,5.36774472]
[1771581029212,8.6094606,84.225,84.187,5.36774472]
[1771581029409,3.04763201,84.23,84.193,5.36774472]
[1771581029717,8.61201032,84.229,84.193,5.36774472]
[1771581029918,3.04763201,84.23,84.193,5.36774472]
[1771581030118,8.61201032,84.229,84.193,5.36774472]
[1771581030320,8.61292307,84.228,84.193,5.36774472]
[1771581030618,3.04763201,84.23,84.193,5.36774472]
[1771581030818,8.61292307,84.229,84.193,5.36774472]
[1771581031120,8.61292307,84.228,84.193,5.36774472]
[1771581031419,3.04763201,84.23,84.197,5.36774472]
[1771581031620,8.61393082,84.229,84.197,5.36774472]
[1771581031914,3.04763201,84.23,84.197,5.36774472]
[1771581032120,8.61394193,84.229,84.197,5.36774472]
[1771581032321,3.04763201,84.23,84.197,5.36774472]
[1771581032522,8.61896163,84.229,84.197,5.36774472]
[1771581032816,3.04763201,84.23,84.197,5.36774472]
[1771581033021,8.61904882,84.229,84.197,5.36774472]
[1771581033221,3.04763201,84.23,84.197,5.36774472]
[1771581033424,8.62015224,84.229,84.197,5.36774472]
[1771581033721,8.62015224,84.228,84.197,5.36774472]
[1771581033922,3.04763201,84.23,84.197,5.36774472]
[1771581034123,8.62015224,84.229,84.197,5.36774472]
[1771581034324,8.62015224,84.228,84.197,5.36774472]
[1771581034523,8.62015224,84.227,84.197,5.36774472]
[1771581034724,8.62015224,84.226,84.197,5.36774472]
[1771581034926,8.62015224,84.225,84.197,5.36774472]
[1771581035127,8.62015224,84.224,84.197,5.36774472]
[1771581035325,8.62162234,84.223,84.197,5.36774472]
[1771581035519,3.04763201,84.23,84.197,5.36774472]
[1771581035717,8.62295045,84.229,84.197,5.36774472]
[1771581035919,8.62295045,84.228,84.197,5.36774472]
[1771581036117,8.62295045,84.227,84.197,5.36774472]
[1771581036324,8.62295045,84.226,84.197,5.36774472]
[1771581036525,3.04763201,84.23,84.197,5.36774472]
[1771581036526,8.62295045,84.225,84.197,5.36774472]
[1771581036731,3.04763201,84.23,84.197,5.36774472]
[1771581037029,8.62440588,84.229,84.197,5.36774472]
[1771581037217,8.62440588,84.228,84.197,5.36774472]
[1771581037418,8.62440588,84.227,84.197,5.36774472]
[1771581037629,8.62440588,84.226,84.197,5.36774472]
[1771581037928,8.6245261,84.225,84.197,5.36774472]
[1771581038122,3.04763201,84.23,84.197,5.36774472]
[1771581038426,8.62452613,84.229,84.197,5.36774472]
[1771581038628,8.62452613,84.228,84.197,5.36774472]
[1771581038928,8.62452613,84.227,84.197,5.36774472]
[1771581039133,8.62452613,84.226,84.197,5.36774472]
[1771581039329,8.62452613,84.225,84.197,5.36774472]
[1771581039529,3.04763201,84.23,84.197,5.36774472]
[1771581039724,8.62491911,84.229,84.197,5.36774472]
[1771581040028,8.62491911,84.228,84.197,5.36774472]
[1771581040228,8.62491911,84.227,84.197,5.36774472]
[1771581040428,8.62491911,84.226,84.197,5.36774472]
[1771581040628,8.62491911,84.225,84.197,5.36774472]
[1771581040832,8.62491911,84.224,84.197,5.36774472]
[1771581041024,8.51813421,84.23,84.197,5.36774472]
[1771581041231,10.6882,84.243,84.188,5.80326114]
[1771581041232,8.51813421,84.22,84.188,5.80326114]
[1771581041526,8.62692139,84.219,84.188,5.80326114]
[1771581041727,8.62692139,84.218,84.188,5.80326114]
[1771581041927,8.62692139,84.217,84.188,5.80326114]
[1771581042121,8.62692139,84.216,84.188,5.80326114]
[1771581042324,14.80676078,84.245,84.161,256.20743157]
[1771581042325,5.4705022,84.209,84.162,5.80326114]
[1771581042528,14.80676078,84.236,84.162,5.80326114]
[1771581042529,3.04763201,84.2,84.162,5.80326114]
[1771581042832,3.04763201,84.19,84.162,5.80326114]
[1771581043841,3.04763201,84.19,84.163,10.6983]
[1771581044721,5.4705022,84.199,84.163,10.6983]
[1771581044923,8.62681274,84.198,84.163,10.6983]
[1771581045129,5.4705022,84.199,84.163,10.6983]
[1771581051330,5.4705022,84.199,84.164,5.80326114]
[1771581058442,3.04763201,84.19,84.164,5.80326114]
[1771581059739,5.4705022,84.219,84.17,3.04763201]
[1771581059942,8.61029109,84.218,84.171,5.80326114]
[1771581060143,3.04700819,84.22,84.171,5.80326114]
[1771581060639,5.4705022,84.239,84.191,5.80326114]
[1771581060941,5.4705022,84.239,84.2,10.6935]
[1771581061133,11.1081693,84.262,84.2,10.6935]
[1771581061134,8.51751039,84.25,84.201,5.80326114]
[1771581061340,8.60615274,84.249,84.201,5.80326114]
[1771581061644,8.51751039,84.25,84.201,5.80326114]
[1771581062144,8.51751039,84.25,84.206,5.80326114]
[1771581062540,3.04700819,84.26,84.211,5.80326114]
[1771581062741,5.4705022,84.259,84.215,5.80326114]
[1771581062942,5.4705022,84.258,84.215,5.80326114]
[1771581063639,3.04700819,84.28,84.231,5.80326114]
[1771581063838,11.56446638,84.279,84.231,5.80326114]
[1771581064141,3.04700819,84.28,84.231,5.80326114]
[1771581064745,3.04700819,84.29,84.241,5.76610141]
[1771581064941,8.59046228,84.289,84.241,5.76610141]
[1771581065145,3.04700819,84.29,84.241,5.76610141]
[1771581066042,5.50383473,84.288,84.241,5.76610141]
[1771581066247,3.04700819,84.28,84.241,5.76610141]
[1771581066446,3.04700819,84.27,84.23,5.76610141]
[1771581066648,3.04700819,84.26,84.23,5.76610141]
[1771581069147,3.04700819,84.25,84.218,5.6178734]
[1771581070339,8.47746891,84.26,84.218,5.6178734]
[1771581072447,5.43046072,84.272,84.221,5.6178734]
[1771581072649,3.04700819,84.27,84.221,5.6178734]
[1771581074151,3.04700819,84.26,84.221,5.6178734]
[1771581074743,8.47746891,84.26,84.221,5.6178734]
[1771581074942,5.43046072,84.259,84.221,5.6178734]
[1771581076351,8.47746891,84.27,84.221,5.6178734]
[1771581078159,3.04700819,84.26,84.221,5.6178734]
[1771581079854,3.04700819,84.25,84.221,5.6178734]
[1771581081152,8.47746891,84.26,84.221,5.6178734]
[1771581082665,3.04700819,84.26,84.221,5.6178734]
[1771581085757,3.04700819,84.27,84.224,5.6178734]
[1771581085968,3.04700819,84.28,84.231,5.6178734]
[1771581086358,3.04700819,84.28,84.24,5.6178734]
[1771581086553,3.04700819,84.29,84.24,5.6178734]
[1771581086760,3.04700819,84.29,84.241,5.6178734]
[1771581087065,3.04700819,84.29,84.251,5.6178734]
[1771581088662,3.04700819,84.29,84.252,10.687]
[1771581088869,3.04700819,84.29,84.253,5.6178734]
[1771581089867,3.04700819,84.29,84.255,5.6178734]
[1771581093278,3.04700819,84.29,84.256,10.6864]
[1771581093574,3.04700819,84.29,84.257,5.6178734]
[1771581095378,3.04700819,84.29,84.258,10.6861]
[1771581096073,5.43046072,84.289,84.258,16.3039734]
[1771581096269,5.43046072,84.289,84.259,5.6178734]
[1771581096669,3.04700819,84.29,84.259,5.6178734]
[1771581099086,3.04700819,84.29,84.25,3.04700819]
[1771581099087,3.04700819,84.31,84.261,5.2719737]
[1771581099378,3.04700819,84.31,84.271,5.2719737]
[1771581102579,8.83774514,84.31,84.271,5.2719737]
[1771581103882,3.04700819,84.3,84.271,5.2719737]
[1771581106187,3.04700819,84.3,84.271,15.9564737]
[1771581108090,3.04700819,84.3,84.271,5.2719737]
[1771581110192,8.83774514,84.29,84.26,5.2719737]
[1771581110393,3.04700819,84.28,84.251,15.9589737]
[1771581110885,5.79073695,84.279,84.231,5.2719737]
[1771581111080,3.04700819,84.27,84.231,5.2719737]
[1771581111284,3.04700819,84.26,84.231,5.2719737]
[1771581115186,3.04700819,84.26,84.232,10.6895]